Cogmind - Beta 16 --- EXPLORER MODE // 2025.11.12 @ 14:38:56 Player: K.K.Y. Result: Destroyed by XU-G73(R) with Subdweller Machine Gun Performance ------------- Evolutions (0) 0 Regions Visited (3) 600 Robots Destroyed (29) 145 Value Destroyed (718) 718 Prototype IDs (1) 20 Alien Tech Used (0) 0 Bonus (120) 120 TOTAL SCORE: 1603 Bonus ------- Follower Combat Kills 120 Cogmind --------- Core Integrity 0/250 Matter 269/300 Energy 250/250 System Corruption 1% Temperature Cool (0) Movement Core (450) Ox8 Location -10/Subcaves Parts ------- > --- POWER (1) -------- Ion Engine > --- PROPULSION (2) --- (None) > --- UTILITY (3) ------ Medium Storage Unit Transport Network Coupler Splice Drone Bay (5/6) > --- WEAPON (2) ------- Subdweller Laser > --- INVENTORY (10) --- Subdweller Power Source Makeshift Power Source Sensor Array Scrap Shield Riot Gun Battle Rifle Barrage Gun Slug Cannon Peak State ------------ > --- POWER ------------ Light Nuclear Core > --- PROPULSION ------- Aluminum Leg > --- UTILITY ---------- Medium Storage Unit Transport Network Coupler Splice Drone Bay > --- WEAPON ----------- Medium Laser Slug Cannon > --- INVENTORY -------- Ion Engine Improved Heat Sink Sensor Array Signal Interpreter Riot Gun Assault Rifle Datajack [Rating: 19] Favorites ----------- Power Light Nuclear Core Engine Ion Engine Power Core Light Nuclear Core Propulsion Aluminum Leg Leg Aluminum Leg Utility Medium Storage Unit Device Splice Drone Bay Storage Medium Storage Unit Processor Transport Network Coupler Weapon Slug Cannon Energy Gun Medium Laser Ballistic Gun Assault Rifle Ballistic Cannon Slug Cannon Special Weapon Mining Laser Build | -11 -10 -10 -10 ------- Run | Yrd Mat Min Sub Slots Evolved 1 | . 1 . . Power . | . . . . Propulsion . | . . . . Utility 1 | . 1 . . Weapon . | . . . . Parts Attached 15 | 7 1 4 3 Power 3 | 1 . 1 1 Engine 2 | 1 . . 1 Core 1 | . . 1 . Reactor . | . . . . Propulsion 2 | 2 . . . Treads . | . . . . Leg 2 | 2 . . . Wheel . | . . . . Hover . | . . . . Flight . | . . . . Utility 5 | 2 . 2 1 Device 1 | . . 1 . Storage 2 | 1 . . 1 Processor 2 | 1 . 1 . Hackware . | . . . . Protection . | . . . . Artifact . | . . . . Weapon 5 | 2 1 1 1 Energy Gun 2 | 1 . . 1 Energy Cannon . | . . . . Ballistic Gun 1 | 1 . . . Ballistic Cannon 1 | . . 1 . Launcher . | . . . . Special Weapon 1 | . 1 . . Impact Weapon . | . . . . Slashing Weapon . | . . . . Piercing Weapon . | . . . . Special Melee Weapon . | . . . . Unidentified Prototypes 1 | . . 1 . Parts Lost 5 | . . 2 3 Power 2 | . . 1 1 Propulsion 1 | . . . 1 Utility . | . . . . Weapon 2 | . . 1 1 Highest Loss Streak 1 | . . 1 1 To Critical Strikes . | . . . . Average Backups 7 | 1 4 5 8 Power 1 | . . . 1 Propulsion . | . . . . Utility 2 | . 1 3 2 Weapon 2 | 1 . . 3 Tool/Special . | . . . . Unused Backups 11 | . . . 11 Power 2 | . . . 2 Propulsion . | . . . . Utility 4 | . . . 4 Weapon 4 | . . . 4 Tool/Special 1 | . . . 1 Average Slot Usage (%) 81 | . 87 81 79 Engine 5 | . 12 . 6 Core 4 | . . 11 2 Leg 12 | . 25 15 8 Device 8 | . . 3 12 Storage 12 | . 12 12 12 Processor 12 | . 12 12 12 Energy Gun 11 | . 8 10 11 Ballistic Gun 2 | . 12 1 . Ballistic Cannon 9 | . . 10 11 Peak Build Rating 19 | 7 8 18 19 Average Rating 14 | 3 7 12 17 On Entrance 8 | . 7 8 18 Avg Prop Armor Cover (%) . | . . . . Naked Turns . | . . . . Heaviest Build 34 | 17 17 32 34 Greatest Support 20 | 20 20 20 10 Greatest Overweight (x) 11 | 3 . 3 11 Average Overweight (x) 2 | . . 1 4 Largest Inventory Capacity 10 | 10 10 10 10 Average Capacity 9 | 8 10 10 10 Most Carried 10 | 6 7 7 10 Average Carried 7 | 2 4 5 8 Final Capacity 10 | 10 10 10 10 Final Carried 9 | . 7 6 9 Class Distribution -------------------- 100% | Hacker-Mutant Dominant Class ---------------- Hacker-Mutant | -10/Materials Hacker-Mutant | -10/Mines Hacker-Mutant | -10/Subcaves Resources | -11 -10 -10 -10 ----------- Run | Yrd Mat Min Sub Matter Collected 1127 | 149 245 196 537 Remotely . | . . . . Salvage Created 725 | . 406 166 153 Parts 61 | . 39 10 12 Haulers Intercepted 2 | . 2 . . Recyclers Shooed . | . . . . Parts Field Recycled . | . . . . Retrieved Matter . | . . . . Parts Self-Destructed . | . . . . Prevented . | . . . . Parts Restored . | . . . . Kills | -11 -10 -10 -10 ------- Run | Yrd Mat Min Sub Combat Hostiles Destroyed 18 | . 8 4 6 Guns 11 | . 8 1 2 Cannons 7 | . . 3 4 Classes Destroyed 9 | . 5 2 2 Worker 1 | . . 1 . Builder 2 | . 1 1 . Tunneler 3 | . . 3 . Hauler 2 | . 2 . . Watcher 3 | . 3 . . Swarmer 4 | . 4 . . Grunt 8 | . 4 4 . Artisan 1 | . . . 1 Subdweller 6 | . . . 6 Best Kill Streak 5 | . 5 2 1 Combat Bots Only 5 | . 5 2 1 Max Kills in Single Turn 1 | . 1 1 1 Gunslinging . | . . . . Exploded . | . . . . Melee . | . . . . Uniques/NPCs Destroyed . | . . . . Combat | -11 -10 -10 -10 -------- Run | Yrd Mat Min Sub Hostile Shots Fired 132 | . 34 19 79 Missed 40 | . 8 4 28 Hits 92 | . 26 15 51 Projectile 92 | . 26 15 51 Damage Taken 1024 | . 203 128 693 Core 261 | . 38 26 197 Absorbed by Shields . | . . . . Ignored by Resistances 616 | . 128 79 409 Core Remaining (%) 100 | 100 . . . Volleys Fired 170 | . 38 38 94 Largest 2 | . 2 2 2 Hottest 120 | . 120 120 100 Shots Fired 317 | . 76 67 174 Gun 209 | . 74 44 91 Cannon 100 | . . 17 83 Launcher . | . . . . Special 8 | . 2 6 . Kinetic 161 | . 38 40 83 Thermal 156 | . 38 27 91 Explosive . | . . . . Electromagnetic . | . . . . Robot Hit Streak 48 | . 12 19 48 Robot Miss Streak 2 | . 2 1 2 Penetration Max . | . . . . Secondary Targets 1 | . 1 . . Max Gunslinging Chain 1 | . 1 . . Shots Hit Robots 140 | . 49 27 64 Core Hits 46 | . 23 13 10 Critical Kills 2 | . 1 . 1 Critical Parts Destroyed 2 | . 1 . 1 Critical Strikes 18 | . 6 3 9 Burn 7 | . 4 3 . Destroy 11 | . 2 . 9 Melee Attacks . | . . . . Impact . | . . . . Slashing . | . . . . Piercing . | . . . . Sneak Attacks . | . . . . Combat Hostiles . | . . . . Follow-up Attacks . | . . . . Damage Inflicted 2227 | . 605 510 1112 Guns 1282 | . 605 197 480 Cannons 845 | . . 215 630 Explosions . | . . . . Melee . | . . . . Ramming 4 | . . 2 2 Kinetic 1219 | . 280 309 630 Thermal 1004 | . 325 199 480 Explosive . | . . . . Electromagnetic . | . . . . Impact . | . . . . Slashing . | . . . . Piercing . | . . . . Highest Corruption 1 | . 1 1 1 Average Corruption 1 | . 1 1 1 Corruption Purged . | . . . . Corruption Blocked . | . . . . Effects 43 | . 1 15 27 Message Errors 9 | . 1 5 3 Matter Fused 6 | . . 2 4 Heat Flow Errors 5 | . . 1 4 Energy Discharges 8 | . . 1 7 Parts Rejected 2 | . . 1 1 Data Loss (minor) 6 | . . 3 3 Data Loss (major) 1 | . . . 1 Misfires 4 | . . 2 2 Alerts 1 | . . . 1 Weapon Failures 1 | . . . 1 Overload Shots . | . . . . Overflow Damage 28 | . . 28 . Projectiles 28 | . . 28 . Explosions . | . . . . Melee . | . . . . Knockbacks 8 | . . . 8 Impact . | . . . . Kinetic 8 | . . . 8 Secondary . | . . . . Self-Inflicted Damage . | . . . . Shots . | . . . . Rammed . | . . . . Targets Rammed 3 | . . 2 1 Kicked 3 | . . 2 1 Crushed . | . . . . Highest Temperature 259 | . 126 219 259 Average Temperature 51 | . 33 58 117 Received Heat Transfer 258 | . 105 123 30 Siege Activations . | . . . . Martial Activations . | . . . . Shielding Activations . | . . . . Robots Disrupted . | . . . . Combat Hostiles . | . . . . Robots Corrupted . | . . . . Combat Hostiles . | . . . . Parts Fried . | . . . . Impact Corruptions . | . . . . Robots Melted . | . . . . Combat Hostiles . | . . . . Parts Melted 3 | . 1 2 . Heat Transferred 2857 | . 1258 718 881 Parts Sabotaged . | . . . . Parts Stolen . | . . . . Parts Stripped . | . . . . Power Chain Reactions . | . . . . Alert | -11 -10 -10 -10 ------- Run | Yrd Mat Min Sub Maximum Alert Level . | . . . . Low Security (%) 100 | 100 100 100 . Level 1 . | . . . . Level 2 . | . . . . Level 3 . | . . . . Level 4 . | . . . . Level 5 . | . . . . High Security . | . . . . Max Security . | . . . . Peak Influence 91 | . 91 38 . Initial . | . . . . Average 4 | . 8 2 . Influence Increases 486 | . 276 210 . Destroy 0b10 Robot/C 280 | . 160 120 . Destroy 0b10 Robot/NC 55 | . 30 25 . Destroy Leader 80 | . 50 30 . Allied During Kill 4 | . . 4 . Disable Machine 12 | . 4 8 . Destroy Structure 25 | . 2 23 . Partial Spotted 15 | . 15 . . Lose Combat Pursuer 15 | . 15 . . Influence Decreases 486 | . 276 210 . Time Decay 470 | . 276 194 . Lost Part 10 | . . 10 . Lost Ally 6 | . . 6 . Squads Dispatched . | . . . . Investigation . | . . . . Extermination . | . . . . Reinforcement . | . . . . Assault . | . . . . Garrison . | . . . . Intercept . | . . . . Searches Triggered . | . . . . Construction Impeded . | . . . . Haulers Reinforced . | . . . . Active Scanning Responses . | . . . . Cargo Convoy Interrupts . | . . . . Stealth | -11 -10 -10 -10 --------- Run | Yrd Mat Min Sub Distress Signals 1 | . 1 . . Communications Jammed . | . . . . Distress Signals . | . . . . Times Spotted 34 | . 15 6 13 Peak Tracking Total 3 | . 3 2 2 Tactical Retreats 7 | . 1 . 6 Traps | -11 -10 -10 -10 ------- Run | Yrd Mat Min Sub Traps Triggered 4 | . 4 . . Indirectly . | . . . . Trap Hack Attempts . | . . . . Triggered . | . . . . Disarmed . | . . . . Reprogrammed . | . . . . Reused . | . . . . Traps Extracted . | . . . . Installed . | . . . . Triggered . | . . . . Machines | -11 -10 -10 -10 ---------- Run | Yrd Mat Min Sub Machines Disabled 3 | . 1 2 . Max in Single Turn 1 | . 1 1 . Machines Repaired . | . . . . Machines Dismantled . | . . . . Machines Sabotaged . | . . . . Overloaded Fab Kills . | . . . . Hacking | -11 -10 -10 -10 --------- Run | Yrd Mat Min Sub Machines Accessed 2 | . 1 1 . Terminals 1 | . 1 . . Fabricators . | . . . . Repair Stations . | . . . . Recycling Units . | . . . . Scanalyzers . | . . . . Garrison Access . | . . . . Total Hacks 2 | . 1 1 . Successful 2 | . 1 1 . Failed . | . . . . Catastrophic . | . . . . Database Lockouts . | . . . . Manual . | . . . . Terminals 1 | . 1 . . Fabricators . | . . . . Repair Stations . | . . . . Recycling Units . | . . . . Scanalyzers . | . . . . Garrison Access . | . . . . Terminal Hacks 2 | . 1 1 . Open Door 1 | . . 1 . Zone Layout 1 | . 1 . . Fabricator Hacks . | . . . . Repair Station Hacks . | . . . . Recycling Unit Hacks . | . . . . Scanalyzer . | . . . . Garrison Access Hacks . | . . . . Unauthorized Hacks . | . . . . Terminals . | . . . . Fabricators . | . . . . Repair Stations . | . . . . Recycling Units . | . . . . Scanalyzers . | . . . . Garrison Access . | . . . . Data Cores Recovered . | . . . . Used . | . . . . Hacking Detections . | . . . . Full Trace Events . | . . . . Feedback Events . | . . . . Feedback Blocked . | . . . . Robot Schematics Acquired . | . . . . Robots Built . | . . . . Authchips . | . . . . Time . | . . . . Total Robot Build Rating . | . . . . Part Schematics Acquired . | . . . . Parts Built . | . . . . Authchips . | . . . . Time . | . . . . Total Part Build Rating . | . . . . Part Studies Acquired . | . . . . Parts Repaired . | . . . . Time . | . . . . Parts Recycled . | . . . . Recycled Matter . | . . . . Retrieved Matter . | . . . . Retrieved Components . | . . . . Parts Scanalyzed . | . . . . Part Schematics Acquired . | . . . . Parts Damaged . | . . . . Bothacking | -11 -10 -10 -10 ------------ Run | Yrd Mat Min Sub Used RIF Installer . | . . . . Robots Hacked . | . . . . Non-combat . | . . . . Combat . | . . . . Robot Hacks Applied . | . . . . Relay Couplers Released . | . . . . Fabnet Peak Effective % . | . . . . Robots Rewired . | . . . . Allies Hacked . | . . . . Hacks Repelled . | . . . . Allies | -11 -10 -10 -10 -------- Run | Yrd Mat Min Sub Total Allies 3 | . . 3 . Largest Group 3 | . . 3 2 Highest-Rated Group 40 | . . 40 32 Highest-Rated Ally 16 | . . 16 16 Total Orders . | . . . . Ally Attacks 41 | . . 17 24 Total Damage 441 | . . 188 253 Kills 4 | . . 2 2 Allies Corrupted 1 | . . . 1 Allies Melted . | . . . . Intel | -11 -10 -10 -10 ------- Run | Yrd Mat Min Sub Active Infowar (turns) 6459 | . . 1835 4624 T.N.C. 6459 | . . 1835 4624 Robot Analysis Total . | . . . . Derelict Logs Recovered 1 | . . . 1 Drone Launches 6 | . . 6 . Drone Recoveries 5 | . . . 5 Exploration | -11 -10 -10 -10 ------------- Run | Yrd Mat Min Sub Turns Passed 7831 | 59 1231 1917 4624 Spaces Moved 2898 | 44 910 728 1216 Core 263 | 22 . . 241 Treads . | . . . . Legs 2635 | 22 910 728 975 Wheels . | . . . . Hover . | . . . . Flight . | . . . . Fastest Speed 50 | 50 120 120 260 Average Speed 248 | 105 120 239 355 Slowest Speed 600 | 200 120 330 600 Overloaded Moves . | . . . . Propulsion Burnouts . | . . . . Robots Hopped . | . . . . Potential Cave-ins 4 | . . . 4 Cave-ins Triggered . | . . . . Exploration Rate (%) 64 | 4 99 99 57 Regions Visited 3 Branch Regions 2 Pre-discovered Areas . | . . . . Known Exits Taken 3 | 1 1 1 . Unknown Exits Taken . | . . . . Scrap Searched 8 | . . . 8 Spaces Dug 8 | . . . 8 Terrain Destroyed 37 | . . 24 13 Melee . | . . . . Projectile 19 | . . 6 13 AOE 18 | . . 18 . Terrain Rammed . | . . . . Walls Destroyed . | . . . . Machines Disabled . | . . . . Actions | -11 -10 -10 -10 --------- Run | Yrd Mat Min Sub Total 3197 | 56 968 825 1348 Wait 84 | . 13 49 22 Move 2895 | 43 909 727 1216 Hop . | . . . . Pick Up 23 | 6 7 3 7 Fast Attach 2 | 1 . . 1 Attach 11 | 6 . 4 1 Detach 1 | . . 1 . Swap 3 | . 1 1 1 Drop 5 | . . . 5 Fire 170 | . 38 38 94 Melee . | . . . . Ram . | . . . . Kick 3 | . . 2 1 Crush . | . . . . Escape Stasis . | . . . . Rewire . | . . . . Trap . | . . . . Miscellaneous . | . . . . Route ------- -11/Scrapyard -10/Materials (discovered 4 exits: *Mat x3 / *Min) -10/Mines (discovered 3 exits: *Mat x2 / *Sub) -10/Subcaves (discovered 3 exits: *Mat x2 / [*Scr]) History --------- Turn | Location | Event 3 | -11/Scrapyard | Identified exit to Materials 3 | -11/Scrapyard | Discovered exit to Materials (range 16) 60 | -11/Scrapyard | Entered Materials 60 | -10/Materials | Evolved 1 slot: Utility x1 308 | -10/Materials | Build established: Hacker-Mutant 368 | -10/Materials | Identified exit to Materials 368 | -10/Materials | Discovered exit to Materials (range 16) 476 | -10/Materials | Discovered exit to Materials (range 10) 640 | -10/Materials | Identified exit to Mines 640 | -10/Materials | Discovered exit to Mines (range 7) 998 | -10/Materials | Discovered exit to Materials (range 11) 1291 | -10/Materials | Entered Mines 1519 | -10/Mines | A weapon hastily lodged in a ceiling crevice suddenly fell to the ground 1634 | -10/Mines | Assisted by bots powering up and referring to "LRC-V3" 2199 | -10/Mines | Discovered exit to Materials (range 4) 2613 | -10/Mines | Discovered exit to Materials (range 14) 2637 | -10/Mines | Found the Drone Emporium 2647 | -10/Mines | Found Prototype Device 2648 | -10/Mines | Identified Splice Drone Bay 3170 | -10/Mines | Identified exit to Subcaves 3170 | -10/Mines | Discovered exit to Subcaves (range 12) 3208 | -10/Mines | Entered Subcaves 3208 | -10/Subcaves | Accompanied by 8 allies 3209 | -10/Subcaves | Approached by a straggling Scientist 3352 | -10/Subcaves | Identified exit to Materials 3352 | -10/Subcaves | Discovered exit to Materials (range 8) 4022 | -10/Subcaves | Scientist uncovered a shortcut to Scraptown 4193 | -10/Subcaves | Ambushed by Subdwellers from Twisted Machinery 4614 | -10/Subcaves | Core integrity fell below 50% 4762 | -10/Subcaves | A swath of the cavern ceiling suddenly collapsed 6397 | -10/Subcaves | Core integrity fell below 20% 7832 | -10/Subcaves | Destroyed by XU-G73(R) with Subdweller Machine Gun Last Messages --------------- 07022_ 2L-MCX(u) tweaks Twisted Machinery. 07058_ System corrupted: Matter fused (-6). 07089_ 2L-MCX(u) cries out in pain. 07089_ 2L-MCX(u) destroyed. 07104_ Acquired 17 matter. 07107_ Subatomizers dissect the Lgt. Ion Engine. 07317_ System corrupted: Component data lost. 07379_ System corrupted: Energy discharge (-65). 07556_ System corrupted: Component data lost. 07696_ System corrupted: Heat flow error (+299). 07717_ Q3-89Y(R): "MADSUB!" 07721_ System corrupted: Slug Cannon rejected. 07725_ Subatomizers dissect the Slug Cannon. 07726_ Q3-89Y(R) suffers critical hit (Destroy). 07726_ Q3-89Y(R) destroyed. 07736_ Subatomizers dissect the Slug Cannon. 07746_ Subatomizers dissect the Sub. Power Source. 07832_ Sub. Laser shoots sparks and powers down. Map ----- +----------------------------------------------------+ | ??????????### ### "" ##????????????? | | ????????????### ### ### """ #####?###?????? | | ??????????????## ??## # ##?#####" ### #?????? | | ??????????????## #### # ##????####" #?????? | | ??????????????# ##??????#""" "#?????? | | ??????????????# #??????##"""" #?????? | | ??????????????# ### #???????## #?????? | | ?????????????# ??## #????????## #?????? | | ?????????????# ###????# #?????????# #?????? | | ?????????????## ????????# ########??## #?????? | | ??????????????##????????# ######" #?????? | | ????????????????????????# ##""###" #?????? | | ???????????????????????## ###""" " #?????? | | ??????????????????????## ###"""" "#?????? | | ?????????????????????## ### """ ##?????? | | ?????????????????????# ### " ##??????? | | ?????????????????????## ##?# ####?????? | | ??????????????????????# ##### ## ##????? | | ??????????????????????# ## # #????? | | ??????????????????????#### # # ] #????? | | ????????????????????????## ## #????? | | ?????????????????######## R## # # #????? | | ????????????????## ####### ### ##????? | | ????????????????# ##?# ### ##?##?????? | | ????????????????# ##?## ## #????????? | | ????????????????# @ #### ## #????????? | | ????????????????# ##????????? | | ????????????????# # #?????????? | | ????????????????## ### # =&! #?????????? | | ?????????????????# ??###### &%*##?????????? | | ????????????????# ???????#######??????????? | | ????????????????## ?????????????????????????? | | ?????????????????### ?????????????????????????? | | ???????????????????## ?????????????????????????? | | ????????????????????# %?????????????????????????? | | ???????????????????? ??????????????????????????? | | ???????????????????? ??????????????????????????? | | ??????????????????? ??????????????????????????? | | ??????????????????? ??????????????????????????? | | ?????????????????????#???????????????????????????? | | ?????????????????????????????????????????????????? | | ?????????????????????????????????????????????????? | | ?????????????????????????????????????????????????? | | ?????????????????????????????????????????????????? | | ?????????????????????????????????????????????????? | | ?????????????????????????????????????????????????? | | ?????????????????????????????????????????????????? | | ?????????????????????????????????????????????????? | | ??????????????????????????????????????